fUSD/lending_fUSD_20260329
["ID","MTS","AMOUNT","RATE_DAILY","PERIOD"]
[419015043,1774753845160,-169.60409879,0.000159,5]
[419015044,1774753845169,-1000.0,0.000159,2]
[419015045,1774753845178,-4700.0,0.000159,5]
[419015046,1774753845187,-203141.45211849,0.000159,2]
[419015047,1774753845197,-250.09143492,0.000159,2]
[419015048,1774753845206,-7509.7700948,0.000159,2]
[419015049,1774753845216,-1200.55551872,0.000159,2]
[419015050,1774753845225,-151.0,0.000159,2]
[419015051,1774753845235,-156.570043,0.000159,2]
[419015052,1774753845244,-151.0,0.000159,2]
[419015053,1774753845253,-401.322822,0.000159,2]
[419015054,1774753845262,-401.322822,0.000159,2]
[419015055,1774753845272,-401.322822,0.000159,2]
[419015056,1774753845281,-3859.0,0.000159,5]
[419015057,1774753845290,-1000.0,0.00015915,2]
[419015058,1774753845300,-1000.0,0.00015918,2]
[419015059,1774753845309,-1000.0,0.00015931,2]
[419015060,1774753845318,-1000.0,0.00015943,2]
[419015061,1774753845328,-1104.40507012,0.00015953,2]
[419015062,1774753845337,-5000.0,0.0001596,2]
[419015063,1774753845346,-1000.0,0.0001596,2]
[419015064,1774753845356,-425.0,0.00015968,2]
[419015065,1774753845366,-425.0,0.00015969,2]
[419015066,1774753845375,-700.0,0.0001597,2]
[419015067,1774753845384,-700.0,0.0001597,2]
[419015068,1774753845393,-700.0,0.0001597,2]
[419015069,1774753845403,-854.65118905,0.0001597,2]
[419015070,1774753845412,-1000.0,0.0001597,2]
[419015071,1774753845421,-1000.0,0.00015974,2]
[419015072,1774753845430,-1000.0,0.00015983,2]
[419015073,1774753845440,-177.90257438,0.00015987,2]
[419015074,1774753845450,-1000.0,0.0001599,2]
[419015075,1774753845459,-151.0,0.00015996,2]
[419015076,1774753845468,-151.0,0.00015997,2]
[419015077,1774753845478,-258.67568,0.00015997,2]
[419015078,1774753845488,-198.6295842,0.00015997,2]
[419015079,1774753845497,-357.53325156,0.00015997,2]
[419015080,1774753845506,-352.11848796,0.00015997,2]
[419015081,1774753845516,-149375.9156911,0.00015997,2]
[419015082,1774753845525,-677.2242101,0.00015999,2]
[419015083,1774753845536,-666.0,0.00015999,2]
[419015084,1774753845545,-197.1775093,0.00015999,2]
[419015085,1774753845555,-273106.7629387,0.00015999,2]
[419015087,1774753845564,-156.494,0.00015999,2]
[419015088,1774753845574,-151.0,0.00015999,2]
[419015089,1774753845583,-155.939702,0.00015999,2]
[419015090,1774753845593,-151.0,0.00015999,2]
[419015091,1774753845602,-732.801806,0.00015999,2]
[419015092,1774753845612,-155.988162,0.00015999,2]
[419015093,1774753845621,-732.801806,0.00015999,2]
[419015094,1774753845630,-732.801806,0.00015999,2]
[419015095,1774753845638,-732.801806,0.00015999,2]
[419015096,1774753845647,-1489.447383,0.00015999,2]
[419015097,1774753845656,-1489.447383,0.00015999,2]
[419015098,1774753845665,-1489.447383,0.00015999,2]
[419015099,1774753845674,-1489.447383,0.00015999,2]
[419015100,1774753845683,-1681810.46362699,0.00016,2]
[419015101,1774753845693,-148289.14377896,0.00016,2]
[419015102,1774753845929,-151.0,0.000159,2]
[419015103,1774753845939,-401.322822,0.000159,2]
[419015104,1774753845950,-1608522.27085212,0.00016,2]
[419015105,1774753845960,-4565486.41755859,0.00016,2]
[419015106,1774753845969,-1753925.55581784,0.00016,2]
[419015107,1774753845981,-1810.91461116,0.00016,2]
[419015108,1774753846032,-336.7928466,0.00016,2]
[419015109,1774753846051,-2008.38477083,0.00016,2]
[419015110,1774753846062,-1407.52319047,0.00016,2]
[419015111,1774753846151,-92064.39155525,0.00016,2]
[419015112,1774753846163,-414823.06783629,0.00016,2]
[419015113,1774753846204,-467.74106694,0.00016,2]
[419015114,1774753846219,-12885.47792618,0.00016,2]
[419015115,1774753846646,-1795.55431102,0.00016,2]
[419015116,1774753846657,-100919.29870157,0.00016,2]
[419015117,1774753846672,-505.0,0.00016,2]
[419015118,1774753846683,-481.3395008,0.00016,2]
[419015123,1774753869140,824.44,0.00010285,2]
[419015125,1774753949900,817.23526846,0.000105,2]
[419015126,1774753993076,769.61,0.00010238,2]
[419015127,1774754068394,279.30287436,0.000105,2]
[419015129,1774754267800,582.74412178,0.000105,2]
[419015130,1774754282373,2500.0,0.000105,2]
[419015131,1774754298165,200.0,0.000105,3]
[419015132,1774754445105,506.5417064,0.000105,2]
[419015133,1774754445129,1802.44075415,0.000105,2]
[419015134,1774754445154,191.01753945,0.000105,2]
[419015135,1774754586107,183.27307312,0.000105,2]
[419015136,1774754586133,202.10141257,0.000105,2]
[419015137,1774754586160,297.89858743,0.000105,2]
[419015138,1774754600196,-1816.72692688,0.000105,2]
[419015139,1774754603563,898.69,0.00010084,2]
[419015140,1774754617019,178.93015126,0.000105,2]
[419015141,1774754649197,1200.55551872,0.000105,2]
[419015142,1774754655256,4088.38047626,0.000105,2]
[419015143,1774754655278,1180.25792374,0.000105,2]
[419015144,1774754691283,250.09143492,0.000105,2]
[419015145,1774754719357,7509.77009482,0.000105,2]
[419015146,1774754740905,1059.89054652,0.000105,2]
[419015147,1774754740926,10000.01,0.000105,2]
[419015148,1774754740948,1869.49505348,0.000105,2]
[419015149,1774754747308,2500.0,0.000105,2]
[419015150,1774754779423,800.37034582,0.000105,2]
[419015151,1774754826112,3500.0,0.000105,3]
[419015152,1774754839555,1330.1446007,0.000105,2]
[419015153,1774754839577,3743.25762614,0.000105,2]
[419015154,1774754848202,746.41,0.00010254,2]
[419015155,1774754874033,-269.0,0.00010534,2]
[419015156,1774754874061,-250.0,0.00010534,2]
[419015157,1774754874087,-166.72762328,0.00010535,2]
[419015158,1774754874114,-161.80850658,0.00010535,2]
[419015159,1774754874143,-378.82998323,0.00010548,2]
[419015160,1774754874171,-1200.0,0.00010588,2]
[419015161,1774754874198,-300.0,0.00010588,2]
[419015162,1774754874226,-150.0,0.00010588,2]
[419015163,1774754891541,1003.31122739,0.00010588,2]
[419015164,1774754909706,533.58023054,0.000105,2]
[419015165,1774754927380,1600.0,9.951e-05,2]
[419015166,1774754934679,232.843984,0.000105,2]
[419015167,1774754941806,300.0,0.00010588,2]
[419015176,1774755032992,-281.82099401,0.00010473,2]
[419015177,1774755033002,-213.15396054,0.00010473,2]
[419015178,1774755033014,-54.84603946,0.00010473,2]
[419015179,1774755033024,-281.820994,0.00010481,2]
[419015180,1774755033033,-281.820994,0.00010489,2]
[419015181,1774755033043,-1200.0,0.00010499,2]
[419015182,1774755033052,-166.72762328,0.000105,2]
[419015183,1774755033063,-200.0,0.000105,3]
[419015184,1774755033072,-3382.26815122,0.000105,2]
[419015185,1774755033082,-300.0,0.00010572,2]
[419015186,1774755033092,-300.0,0.00010572,2]
[419015187,1774755033102,-95.4296247,0.00010573,2]
[419015188,1774755033129,-404.5703753,0.00010573,2]
[419015189,1774755033138,-500.0,0.00010573,2]
[419015190,1774755033147,-500.0,0.00010573,2]
[419015191,1774755033157,-500.0,0.00010573,2]
[419015192,1774755033167,-500.44548801,0.00010573,2]
[419015193,1774755033176,-500.0,0.00010573,2]
[419015194,1774755033185,-500.0,0.00010573,2]
[419015195,1774755033195,-150.0,0.00010588,2]
[419015196,1774755033204,-71469.97097417,0.00010589,2]
[419015197,1774755033214,-250.0,0.00010589,2]
[419015198,1774755033223,-177.90257438,0.0001059,2]
[419015199,1774755033232,-361.11681594,0.00010591,2]
[419015200,1774755033242,-464.14148515,0.00010591,2]
[419015201,1774755033251,-178.32468778,0.00010591,2]
[419015203,1774755033261,-500.0,0.00010591,2]
[419015204,1774755033270,-500.0,0.00010591,2]
[419015205,1774755033280,-500.0,0.00010591,2]
[419015206,1774755033289,-500.0,0.00010591,2]
[419015207,1774755033298,-500.0,0.00010591,2]
[419015208,1774755033307,-500.0,0.00010591,2]
[419015209,1774755033317,-500.0,0.00010591,2]
[419015210,1774755033326,-500.0,0.00010591,2]
[419015211,1774755033335,-500.0,0.00010591,2]
[419015212,1774755033345,-500.0,0.00010591,2]
[419015213,1774755033355,-500.0,0.00010591,2]
[419015214,1774755033364,-500.0,0.00010591,2]
[419015216,1774755033374,-500.0,0.00010591,2]
[419015217,1774755033383,-500.0,0.00010591,2]
[419015218,1774755033392,-500.0,0.00010591,2]
[419015219,1774755033402,-500.0,0.00010591,2]
[419015220,1774755033411,-500.0,0.00010591,2]
[419015221,1774755033421,-500.0,0.00010591,2]
[419015224,1774755033434,-500.0,0.00010591,2]
[419015227,1774755033443,-500.0,0.00010591,2]
[419015229,1774755033452,-500.0,0.00010591,2]
[419015231,1774755033462,-500.0,0.00010591,2]
[419015233,1774755033472,-500.0,0.00010591,2]
[419015235,1774755033481,-500.0,0.00010591,2]
[419015237,1774755033491,-500.0,0.00010591,2]
[419015239,1774755033501,-500.0,0.00010591,2]
[419015241,1774755033510,-500.0,0.00010591,2]
[419015242,1774755033519,-500.0,0.00010591,2]
[419015243,1774755033529,-500.0,0.00010591,2]
[419015244,1774755033539,-500.0,0.00010591,2]
[419015245,1774755033548,-338.9817314,0.00010591,2]
[419015246,1774755033557,-500.0,0.00010591,2]
[419015247,1774755033567,-500.0,0.00010591,2]
[419015248,1774755033576,-500.0,0.00010591,2]
[419015249,1774755033585,-500.0,0.00010591,2]
[419015250,1774755033595,-500.0,0.00010591,2]
[419015251,1774755033605,-500.0,0.00010591,2]
[419015252,1774755033615,-500.0,0.00010591,2]
[419015253,1774755033624,-500.0,0.00010591,2]
[419015254,1774755033636,-500.0,0.00010591,2]
[419015255,1774755033646,-500.0,0.00010591,2]
[419015256,1774755033655,-500.0,0.00010591,2]
[419015257,1774755033665,-500.0,0.00010591,2]
[419015258,1774755033674,-500.0,0.00010591,2]
[419015259,1774755033683,-500.0,0.00010591,2]
[419015260,1774755033693,-500.0,0.00010591,2]
[419015261,1774755033703,-500.0,0.00010591,2]
[419015262,1774755033712,-500.0,0.00010591,2]
[419015263,1774755033722,-500.0,0.00010591,2]
[419015264,1774755033733,-500.0,0.00010591,2]
[419015265,1774755033742,-233.89817314,0.00010591,2]
[419015266,1774755033752,-500.0,0.00010591,2]
[419015267,1774755033764,-500.0,0.00010591,2]
[419015268,1774755033775,-500.0,0.00010591,2]
[419015269,1774755033786,-500.0,0.00010591,2]
[419015270,1774755033796,-500.0,0.00010591,2]
[419015271,1774755033808,-500.0,0.00010591,2]
[419015272,1774755033819,-500.0,0.00010591,2]
[419015273,1774755033830,-500.0,0.00010591,2]
[419015274,1774755033839,-500.0,0.00010591,2]
[419015275,1774755033849,-500.0,0.00010591,2]
[419015276,1774755033858,-500.0,0.00010591,2]
[419015277,1774755033868,-500.0,0.00010591,2]
[419015278,1774755033877,-500.0,0.00010591,2]
[419015279,1774755033888,-500.0,0.00010591,2]
[419015280,1774755033899,-500.0,0.00010591,2]
[419015281,1774755033909,-500.0,0.00010591,2]
[419015282,1774755033919,-500.0,0.00010591,2]
[419015283,1774755033931,-500.0,0.00010591,2]
[419015284,1774755033940,-300.0,0.00010591,2]
[419015285,1774755033949,-738.16,0.00010593,2]
[419015286,1774755033959,-5081.68,0.00010594,2]
[419015287,1774755033969,-44509.08383593,0.00010594,2]
[419015288,1774755033982,-351.95748645,0.00010594,2]
[419015289,1774755033994,-530.12669042,0.00010594,2]
[419015290,1774755034005,-2245.88125224,0.00010594,2]
[419015292,1774755038157,-5458.30856051,0.00010594,2]
[419015293,1774755038370,-3977.17419144,0.00010594,2]
[419015294,1774755038425,-49186.74798301,0.00010594,2]
[419015296,1774755038435,-1190.17,0.00010594,2]
[419015297,1774755038444,-999.99,0.00010594,2]
[419015298,1774755038453,-5058.46,0.00010594,2]
[419015299,1774755038464,-2115.96,0.00010594,2]
[419015300,1774755038474,-9999.99,0.00010594,2]
[419015302,1774755038485,-150.99,0.00010594,2]
[419015303,1774755038494,-14101.42,0.00010594,2]
[419015304,1774755038504,-40070.58,0.00010594,2]
[419015305,1774755038513,-9999.99,0.00010594,2]
[419015306,1774755038522,-150.99,0.00010594,2]
[419015307,1774755038531,-200.0,0.00010594,2]
[419015308,1774755038541,-500.0,0.00010594,2]
[419015309,1774755038550,-500.0,0.00010594,2]
[419015310,1774755038559,-500.0,0.00010594,2]
[419015311,1774755038568,-500.0,0.00010594,2]
[419015312,1774755038578,-500.0,0.00010594,2]
[419015313,1774755038587,-500.0,0.00010594,2]
[419015315,1774755038596,-500.0,0.00010594,2]
[419015317,1774755038605,-151.0,0.00010594,2]
[419015319,1774755038615,-151.0,0.00010594,2]
[419015321,1774755038624,-500.0,0.00010594,2]
[419015324,1774755038634,-151.0,0.00010594,2]
[419015325,1774755038643,-151.0,0.00010594,2]
[419015328,1774755038653,-151.0,0.00010594,2]
[419015330,1774755038662,-151.0,0.00010594,2]
[419015332,1774755038671,-500.0,0.00010594,2]
[419015334,1774755038680,-151.0,0.00010594,2]
[419015335,1774755038690,-151.0,0.00010594,2]
[419015337,1774755038699,-151.0,0.00010594,2]
[419015338,1774755038709,-151.0,0.00010594,2]
[419015339,1774755038718,-151.0,0.00010594,2]
[419015340,1774755038727,-151.0,0.00010594,2]
[419015341,1774755038736,-151.0,0.00010594,2]
[419015342,1774755038745,-151.0,0.00010594,2]
[419015343,1774755038754,-151.0,0.00010594,2]
[419015344,1774755038763,-151.0,0.00010594,2]
[419015345,1774755038772,-151.0,0.00010594,2]
[419015346,1774755038781,-151.0,0.00010594,2]
[419015347,1774755038790,-151.0,0.00010594,2]
[419015348,1774755038799,-500.0,0.00010594,2]
[419015349,1774755038808,-153.61281839,0.00010594,2]
[419015350,1774755038817,-151.0,0.00010594,2]
[419015351,1774755038826,-500.0,0.00010594,2]
[419015352,1774755038835,-500.0,0.00010594,2]
[419015353,1774755038844,-500.0,0.00010594,2]
[419015354,1774755038854,-500.0,0.00010594,2]
[419015355,1774755038863,-586.99770711,0.00010594,2]
[419015356,1774755038872,-1294.23570642,0.00010594,2]
[419015357,1774755038881,-151.0,0.00010597,2]
[419015358,1774755038890,-500.0,0.00010599,2]
[419015359,1774755038900,-1023.96434805,0.00010599,3]
[419015360,1774755038909,-177.003,0.00010599,2]
[419015361,1774755038918,-2215.406,0.00010599,2]
[419015362,1774755038927,-7100.0,0.000106,3]
[419015363,1774755038937,-500.0,0.000106,3]
[419015364,1774755038946,-14086.2175,0.00010635,2]
[419015365,1774755038955,-1000.0,0.00010635,2]
[419015366,1774755038965,-1500000.0,0.00010635,2]
[419015367,1774755038975,-500.0,0.00010673,2]
[419015368,1774755038984,-500.0,0.00010673,2]
[419015369,1774755038994,-500.0,0.00010673,2]
[419015370,1774755039004,-500.0,0.00010673,2]
[419015371,1774755039014,-500.0,0.00010673,2]
[419015372,1774755039025,-500.0,0.00010673,2]
[419015373,1774755039034,-500.0,0.00010673,2]
[419015374,1774755039043,-500.44211143,0.00010673,2]
[419015375,1774755039053,-500.0,0.00010673,2]
[419015376,1774755039062,-500.0,0.00010673,2]
[419015377,1774755039072,-500.0,0.00010673,2]
[419015378,1774755039081,-500.32969063,0.00010673,2]
[419015379,1774755039090,-500.0,0.00010673,2]
[419015380,1774755039099,-502.6541819,0.00010673,2]
[419015381,1774755039109,-500.0,0.00010673,2]
[419015382,1774755039119,-500.0756086,0.00010673,2]
[419015383,1774755039128,-500.22919119,0.00010673,2]
[419015384,1774755039137,-500.0,0.00010673,2]
[419015385,1774755039146,-500.0,0.00010673,2]
[419015386,1774755039155,-500.0,0.00010673,2]
[419015387,1774755039165,-150.0,0.000107,2]
[419015388,1774755039175,-10700.0,0.000107,3]
[419015389,1774755039184,-800.0,0.000107,3]
[419015390,1774755039194,-14200.0,0.000108,3]
[419015391,1774755039203,-1100.0,0.000108,3]
[419015392,1774755039213,-259.0,0.00010809,2]
[419015393,1774755039222,-479.0,0.0001083,2]
[419015394,1774755039233,-298.0,0.00010852,2]
[419015395,1774755039242,-749.0,0.00010862,2]
[419015396,1774755039252,-738.16,0.00010867,2]
[419015397,1774755039261,-500.0,0.00010873,2]
[419015398,1774755039271,-1433.79533457,0.00010883,2]
[419015399,1774755039281,-17800.0,0.000109,3]
[419015400,1774755039290,-1400.0,0.000109,3]
[419015401,1774755039300,-380.6754523,0.000109,2]
[419015402,1774755039310,-380.6754523,0.000109,2]
[419015403,1774755039321,-502.53715092,0.00010959,2]
[419015404,1774755039332,-150.0,0.00010959,2]
[419015405,1774755039343,-2195.48273165,0.00011,2]
[419015406,1774755039353,-347.0,0.00011014,2]
[419015407,1774755039365,-189.0,0.00011016,2]
[419015408,1774755039377,-173.0,0.00011036,2]
[419015409,1774755039388,-196.0,0.00011038,2]
[419015410,1774755039398,-28175.44841114,0.00011099,2]
[419015411,1774755039408,-28175.4484111,0.00011099,2]
[419015412,1774755039533,-200.33245203,0.00011121,2]
[419015413,1774755039543,-870.62839673,0.00011121,2]
[419015414,1774755039552,-1000.0,0.00011121,2]
[419015415,1774755039561,-738.16,0.00011141,2]
[419015416,1774755039570,-200.0,0.00011142,2]
[419015417,1774755039579,-500.0,0.00011147,2]
[419015418,1774755039588,-1600.0,0.00011195,2]
[419015419,1774755039598,-576.47577608,0.00011221,2]
[419015420,1774755039607,-500.85720681,0.00011221,2]
[419015421,1774755039616,-1047.14103911,0.00011221,2]
[419015422,1774755039625,-197.01734564,0.00011221,2]
[419015423,1774755039634,-1000.0,0.00011221,2]
[419015424,1774755039644,-1000.0,0.00011221,2]
[419015425,1774755039653,-1000.0,0.00011221,2]
[419015426,1774755039663,-625.51312446,0.00011221,2]
[419015427,1774755039672,-1000.0,0.00011221,2]
[419015428,1774755039681,-169.92418884,0.00011221,2]
[419015429,1774755039690,-1000.0,0.00011221,2]
[419015430,1774755039700,-1000.0,0.00011221,2]
[419015431,1774755039709,-1000.0,0.00011221,2]
[419015432,1774755039719,-410.25,0.000113,2]
[419015433,1774755039728,-582.74412177,0.000114,2]
[419015434,1774755039738,-738.16,0.00011415,2]
[419015436,1774755039748,-500.0,0.00011421,2]
[419015437,1774755039757,-28175.4484111,0.00011428,2]
[419015438,1774755039767,-1680.0,0.00011549,2]
[419015439,1774755039776,-167.63692162,0.00011573,2]
[419015440,1774755039785,-500.64843314,0.00011573,2]
[419015441,1774755039794,-500.0,0.00011573,2]
[419015442,1774755039803,-2053.9655915,0.00011587,2]
[419015443,1774755039812,-250.0,0.00011587,2]
[419015444,1774755039821,-5000.0,0.00011587,2]
[419015445,1774755039830,-154.55748469,0.00011587,2]
[419015446,1774755039839,-195.0,0.00011587,2]
[419015447,1774755039849,-255.0,0.00011615,2]
[419015448,1774755039858,-420.0,0.00011622,2]
[419015449,1774755039868,-250.0,0.00011648,2]
[419015450,1774755039877,-1500.0,0.00011668,2]
[419015451,1774755039886,-738.16,0.00011688,2]
[419015452,1774755039896,-200.0,0.0001169,2]
[419015453,1774755039906,-500.0,0.00011695,2]
[419015454,1774755039917,-1002.61387031,0.00011768,2]
[419015455,1774755039928,-1500.0,0.00011768,2]
[419015456,1774755039938,-1500.0,0.00011768,2]
[419015457,1774755039948,-1500.0,0.00011768,2]
[419015458,1774755039957,-1500.0,0.00011768,2]
[419015459,1774755039967,-1320.33958231,0.00011768,2]
[419015460,1774755039976,-1500.0,0.00011768,2]
[419015461,1774755039986,-28175.4484111,0.00011894,2]
[419015462,1774755039996,-738.16,0.00011962,2]
[419015463,1774755040005,-500.0,0.00011969,2]
[419015464,1774755040014,-2922.6,0.00012055,2]
[419015465,1774755040023,-1048.50354711,0.00012121,2]
[419015466,1774755040033,-2000.0,0.00012216,2]
[419015467,1774755040042,-738.16,0.00012236,2]
[419015468,1774755040051,-200.0,0.00012238,2]
[419015469,1774755040060,-500.0,0.00012243,2]
[419015470,1774755040069,-205.01,0.00012267,2]
[419015471,1774755040079,-150.6402,0.000123,2]
[419015472,1774755040088,-582.74412177,0.000123,2]
[419015473,1774755040097,-2004.98467102,0.00012316,2]
[419015474,1774755040106,-2000.0,0.00012316,2]
[419015475,1774755040116,-2000.0,0.00012316,2]
[419015476,1774755040125,-2000.0,0.00012316,2]
[419015478,1774755040134,-2000.0,0.00012316,2]
[419015479,1774755040143,-28175.4484111,0.00012361,2]
[419015481,1774755040153,-1600.0,0.00012439,2]
[419015483,1774755040162,-738.16222207,0.0001251,2]
[419015484,1774755040172,-500.0,0.00012517,2]
[419015485,1774755040181,-2351.0,0.00012704,2]
[419015486,1774755040190,-433.0,0.00012737,2]
[419015487,1774755040200,-1647.88588496,0.00012764,2]
[419015488,1774755040209,-193.0,0.00012777,2]
[419015489,1774755040219,-200.0,0.00012786,2]
[419015490,1774755040228,-28175.4484111,0.00012828,2]
[419015491,1774755040238,-595.96856595,0.00012864,2]
[419015492,1774755040247,-2500.0,0.00012864,2]
[419015493,1774755040256,-172.12760916,0.00012864,2]
[419015494,1774755040266,-2500.0,0.00012864,2]
[419015495,1774755040275,-250.0,0.00013,2]
[419015496,1774755040284,-582.74412177,0.000132,2]
[419015497,1774755040295,-232.843984,0.000132,2]
[419015498,1774755040304,-3382.26815121,0.000132,2]
[419015499,1774755040314,-28175.4484111,0.00013295,2]
[419015500,1774755040323,-200.0,0.00013334,2]
[419015501,1774755040333,-1509.48219482,0.00013412,2]
[419015502,1774755040343,-3000.0,0.00013412,2]
[419015503,1774755040353,-180.933304,0.00013435,2]
[419015504,1774755040363,-2597.387849,0.00013486,2]
[419015505,1774755040372,-270.856108,0.00013486,2]
[419015506,1774755040382,-282.67949,0.00013486,2]
[419015507,1774755040391,-938.844312,0.00013502,2]
[419015508,1774755040400,-500.0,0.00013562,2]
[419015509,1774755040409,-1600.0,0.00013683,2]
[419015510,1774755040419,-500.0,0.00013698,2]
[419015511,1774755040428,-1751.82507383,0.00013698,2]
[419015512,1774755040437,-500.0,0.00013698,2]
[419015513,1774755040447,-500.0,0.00013698,2]
[419015514,1774755040457,-500.0,0.00013698,2]
[419015515,1774755040468,-500.0,0.00013698,2]
[419015516,1774755040478,-500.0,0.00013698,2]
[419015517,1774755040487,-500.0,0.00013698,2]
[419015518,1774755040497,-504.79360134,0.00013698,2]
[419015519,1774755040506,-500.0,0.00013698,2]
[419015520,1774755040515,-500.0,0.00013698,2]
[419015521,1774755040525,-500.0,0.00013698,2]
[419015522,1774755040534,-500.0,0.00013698,2]
[419015523,1774755040543,-500.0,0.00013698,2]
[419015524,1774755040553,-500.0,0.00013698,2]
[419015525,1774755040562,-500.0,0.00013698,2]
[419015526,1774755040572,-500.0,0.00013698,2]
[419015527,1774755040581,-500.0,0.00013698,2]
[419015528,1774755040591,-336.64294585,0.00013698,2]
[419015529,1774755040600,-500.0,0.00013698,2]
[419015530,1774755040610,-500.0,0.00013698,2]
[419015531,1774755040619,-500.0,0.00013698,2]
[419015532,1774755040628,-500.0,0.00013698,2]
[419015533,1774755040638,-500.0,0.00013698,2]
[419015534,1774755040647,-500.0,0.00013698,2]
[419015535,1774755040656,-500.0,0.00013698,2]
[419015536,1774755040665,-500.0,0.00013698,2]
[419015537,1774755040674,-500.0,0.00013698,2]
[419015538,1774755040684,-500.0,0.00013698,2]
[419015539,1774755040693,-421.06308427,0.00013698,2]
[419015540,1774755040702,-500.0,0.00013698,2]
[419015541,1774755040712,-500.0,0.00013698,2]
[419015542,1774755040721,-500.0,0.00013698,2]
[419015543,1774755040730,-500.0,0.00013698,2]
[419015544,1774755040740,-247.12633402,0.00013698,2]
[419015545,1774755040749,-635.43,0.00013698,2]
[419015546,1774755040758,-635.43,0.00013698,2]
[419015547,1774755040768,-635.43,0.00013698,2]
[419015548,1774755040777,-635.43,0.00013698,2]
[419015549,1774755040787,-635.43,0.00013698,2]
[419015550,1774755040797,-635.43,0.00013698,2]
[419015551,1774755040806,-635.43,0.00013698,2]
[419015552,1774755040816,-635.43,0.00013698,2]
[419015553,1774755040825,-635.43,0.00013698,2]
[419015554,1774755040835,-635.43,0.00013698,2]
[419015555,1774755040844,-635.43,0.00013698,2]
[419015556,1774755040854,-635.43,0.00013698,2]
[419015557,1774755040863,-635.43,0.00013698,2]
[419015558,1774755040872,-635.43,0.00013698,2]
[419015559,1774755040882,-635.43,0.00013698,2]
[419015560,1774755040891,-635.43,0.00013698,2]
[419015561,1774755040901,-635.43,0.00013698,2]
[419015562,1774755040911,-635.43,0.00013698,2]
[419015563,1774755040920,-500.0,0.00013698,2]
[419015564,1774755040929,-500.0,0.00013698,2]
[419015565,1774755040938,-500.0,0.00013698,2]
[419015566,1774755040947,-500.0,0.00013698,2]
[419015567,1774755040957,-500.0,0.00013698,2]
[419015568,1774755040967,-548.79475367,0.00013698,2]
[419015569,1774755040976,-500.0,0.00013698,2]
[419015570,1774755040986,-500.0,0.00013698,2]
[419015571,1774755040996,-500.0,0.00013698,2]
[419015572,1774755041006,-500.0,0.00013698,2]
[419015573,1774755041016,-376.64854998,0.00013698,2]
[419015574,1774755041027,-500.0,0.00013698,2]
[419015575,1774755041038,-500.0,0.00013698,2]
[419015576,1774755041048,-500.0,0.00013698,2]
[419015577,1774755041058,-500.0,0.00013698,2]
[419015578,1774755041068,-500.0,0.00013698,2]
[419015579,1774755041077,-217.38717604,0.00013698,2]
[419015580,1774755041087,-500.0,0.00013698,2]
[419015581,1774755041096,-500.0,0.00013698,2]
[419015582,1774755041106,-500.0,0.00013698,2]
[419015583,1774755041116,-500.0,0.00013698,2]
[419015584,1774755041125,-500.0,0.00013698,2]
[419015585,1774755041134,-289.69293567,0.00013698,2]
[419015586,1774755041144,-587.57676003,0.00013698,2]
[419015587,1774755041153,-500.0,0.00013698,2]
[419015588,1774755041163,-500.0,0.00013698,2]
[419015589,1774755041172,-569.13922893,0.00013698,2]